bitfinex-derivatives/quotes_BTCF0:USTF0_20241023
["timestamp","ask_amount","ask_price","bid_price","bid_amount"]
[1729691127308,0.0326,66709.0,66700.0,0.45946548]
[1729691127512,0.0326,66709.0,66708.0,0.075002]
[1729691129211,0.2026,66709.0,66708.0,0.02738323]
[1729691129408,0.2026,66709.0,66702.0,0.13168]
[1729691129409,0.2026,66709.0,66702.0,0.30168]
[1729691129617,0.0326,66709.0,66708.0,0.17]
[1729691129806,0.0326,66709.0,66708.0,0.075002]
[1729691129807,0.107601,66709.0,66708.0,0.075002]
[1729691130011,0.0326,66709.0,66708.0,0.075002]
[1729691131306,0.277601,66709.0,66708.0,0.075002]
[1729691131713,0.0326,66709.0,66708.0,0.075002]
[1729691132605,0.107601,66709.0,66708.0,0.075002]
[1729691133317,0.075005,66707.0,66706.0,0.075003]
[1729691133516,0.245005,66707.0,66706.0,0.075003]
[1729691133810,0.075007,66704.0,66703.0,0.075006]
[1729691134413,0.075011,66700.0,66699.0,0.075011]
[1729691134621,0.245011,66700.0,66699.0,0.075011]
[1729691135114,0.136107,66703.0,66702.0,0.075008]
[1729691135512,0.2026,66709.0,66706.0,0.075003]
[1729691135816,0.075003,66707.0,66706.0,0.075003]
[1729691139324,0.12343157,66707.0,66706.0,0.075003]
[1729691139820,0.04842857,66707.0,66706.0,0.075003]
[1729691140123,0.0326,66709.0,66703.0,0.17]
[1729691140318,0.0326,66709.0,66708.0,0.075002]
[1729691140724,0.09465674,66711.0,66710.0,0.075]
[1729691140725,0.01965874,66711.0,66710.0,0.075]
[1729691141813,0.01965874,66711.0,66710.0,0.11945448]
[1729691142024,0.01965874,66711.0,66710.0,0.075]
[1729691142411,0.01965874,66711.0,66710.0,0.11951821]
[1729691142616,0.01965874,66711.0,66710.0,0.075]
[1729691143118,0.00015874,66712.0,66711.0,0.074998]
[1729691144413,1e-08,66712.0,66711.0,0.074998]
[1729691145218,0.0008,66717.0,66716.0,0.074993]
[1729691145530,0.0008,66717.0,66716.0,0.244993]
[1729691146828,0.17,66741.0,66730.0,0.074976]
[1729691147131,0.075775,66732.0,66731.0,0.244976]
[1729691147519,0.0008,66732.0,66731.0,0.244976]
[1729691148225,0.05051384,66732.0,66731.0,0.244976]
[1729691148425,0.10823681,66732.0,66731.0,0.19246035]
[1729691149034,0.05051672,66732.0,66731.0,0.19246035]
[1729691150538,0.0008,66732.0,66731.0,0.19246035]
[1729691151229,0.09888469,66739.0,66731.0,0.19246035]
[1729691151230,0.02391669,66739.0,66738.0,0.074968]
[1729691151621,0.0307,66753.0,66738.0,0.61952]
[1729691151830,0.00136,66757.0,66752.0,0.17]
[1729691152030,0.0016,66759.0,66754.0,0.07495]
[1729691152239,0.00286938,66775.0,66754.0,0.07495]
[1729691152240,1.98158906,66776.0,66772.0,0.074929]
[1729691152531,1.98158906,66776.0,66775.0,0.17]
[1729691152727,1.98158906,66776.0,66764.0,0.17]
[1729691152728,2.15158906,66776.0,66764.0,0.17]
[1729691153131,0.17,66767.0,66765.0,0.074938]
[1729691153332,0.17,66767.0,66757.0,0.17]
[1729691153535,0.17,66767.0,66761.0,0.074942]
[1729691153835,0.17,66764.0,66761.0,0.074942]
[1729691154030,0.17,66767.0,66762.0,0.07494]
[1729691154426,0.17,66763.0,66762.0,0.07494]
[1729691154940,0.17,66763.0,66760.0,0.074943]
[1729691155933,0.074942,66762.0,66757.0,0.074947]
[1729691156133,0.0302,66762.0,66753.0,0.0297685]
[1729691156334,0.17,66758.0,66757.0,0.074947]
[1729691156740,0.17,66761.0,66758.0,0.074945]
[1729691157034,0.106136,66767.0,66758.0,0.17]
[1729691157239,0.2012,66767.0,66758.0,0.17]
[1729691157430,0.17,66763.0,66754.0,0.17]
[1729691157938,0.17,66763.0,66759.0,0.074944]
[1729691158135,0.17,66763.0,66754.0,0.17]
[1729691158136,0.17,66763.0,66761.0,0.074942]
[1729691158336,0.17,66763.0,66754.0,0.17]
[1729691158535,0.17,66763.0,66762.0,0.074941]
[1729691158933,0.17,66763.0,66754.0,0.17]
[1729691159133,0.17,66760.0,66759.0,0.074944]
[1729691160136,0.074939,66765.0,66754.0,0.17]
[1729691160423,0.074945,66759.0,66757.0,0.074946]
[1729691160625,0.17,66760.0,66759.0,0.074944]
[1729691160928,0.074941,66762.0,66760.0,0.074943]
[1729691160929,0.17,66761.0,66760.0,0.074943]
[1729691161631,0.244942,66761.0,66760.0,0.074943]
[1729691162037,0.17,66761.0,66760.0,0.074943]
[1729691162439,0.074941,66763.0,66762.0,0.074941]
[1729691162736,0.244941,66763.0,66762.0,0.074941]
[1729691163329,0.0312,66767.0,66766.0,0.074937]
[1729691163538,0.17,66774.0,66762.0,0.02641774]
[1729691163837,0.074943,66761.0,66760.0,0.074943]
[1729691164043,0.244943,66761.0,66760.0,0.074943]
[1729691164541,0.244943,66761.0,66755.0,0.02652842]
[1729691164738,0.0308,66762.0,66761.0,0.074942]
[1729691164940,0.17,66762.0,66761.0,0.074942]
[1729691165235,0.17,66763.0,66759.0,0.074944]
[1729691165443,0.17,66763.0,66762.0,0.074941]
[1729691166540,0.17,66766.0,66758.0,0.17]
[1729691166850,0.17,66766.0,66765.0,0.074938]
[1729691166851,0.244937,66766.0,66765.0,0.074938]
[1729691167446,0.074932,66771.0,66765.0,0.17]
[1729691167637,0.074938,66767.0,66766.0,0.074935]
[1729691167837,0.17,66767.0,66757.0,0.17]
[1729691168034,0.0308,66774.0,66760.0,0.074943]
[1729691168035,0.244943,66761.0,66760.0,0.074943]
[1729691168846,0.17,66761.0,66760.0,0.1016072]
[1729691169650,0.244942,66761.0,66760.0,0.0266642]
[1729691169941,0.17,66764.0,66757.0,0.17]
[1729691170144,0.17,66768.0,66767.0,0.074935]
[1729691170334,0.17,66768.0,66761.0,0.17]
[1729691170539,0.074938,66766.0,66764.0,0.074938]
[1729691170739,0.074938,66766.0,66765.0,0.074938]
[1729691172451,0.074943,66762.0,66761.0,0.074941]
[1729691172648,0.244943,66762.0,66761.0,0.074941]
[1729691173250,0.17,66762.0,66754.0,0.17]
[1729691173445,0.244946,66759.0,66758.0,0.074945]
[1729691173847,0.17,66759.0,66754.0,0.02758932]
[1729691174051,0.17,66759.0,66758.0,0.074946]
[1729691174347,0.244944,66759.0,66758.0,0.074946]
[1729691175552,0.074944,66759.0,66758.0,0.074946]
[1729691176253,0.0314,66761.0,66760.0,0.074943]
[1729691176447,0.074938,66765.0,66764.0,0.074939]
[1729691176751,0.074938,66765.0,66764.0,0.244939]
[1729691177155,0.0305,66769.0,66767.0,0.074935]
[1729691177156,0.074934,66768.0,66767.0,0.074935]
[1729691177941,0.074944,66760.0,66759.0,0.074944]
[1729691178354,0.17,66760.0,66753.0,0.0593097]
[1729691178654,0.074948,66756.0,66755.0,0.074949]
[1729691179544,0.074943,66761.0,66760.0,0.074943]
[1729691179750,0.074943,66761.0,66753.0,0.0593097]
[1729691179751,0.074946,66758.0,66757.0,0.04437289]
[1729691180051,0.074946,66758.0,66757.0,0.11931989]
[1729691180648,0.074946,66758.0,66757.0,0.074947]
[1729691181346,0.17,66762.0,66761.0,0.074942]
[1729691181347,0.074942,66762.0,66761.0,0.074942]
[1729691181547,0.074942,66762.0,66761.0,0.244942]
[1729691181753,0.074942,66762.0,66761.0,0.074942]
[1729691182054,0.074939,66766.0,66765.0,0.074938]
[1729691182249,0.105434,66769.0,66768.0,0.074934]
[1729691182645,0.0305,66769.0,66768.0,0.244934]
[1729691182846,1.98158906,66776.0,66768.0,0.24413713]
[1729691183053,1.98158906,66776.0,66775.0,0.074926]
[1729691183255,1.95522306,66776.0,66775.0,0.074926]
[1729691183446,1.95522306,66776.0,66775.0,0.15986973]
[1729691184253,1.95522306,66776.0,66775.0,0.074926]
[1729691184456,1.95522306,66776.0,66775.0,0.204966]
[1729691184861,1.95522306,66776.0,66775.0,0.23256882]
[1729691185361,1.78292991,66776.0,66775.0,0.23256882]
[1729691185552,1.78292991,66776.0,66775.0,0.26346882]
[1729691185861,1.78292991,66776.0,66775.0,0.71274882]
[1729691185862,1.77243769,66776.0,66775.0,0.71274882]
[1729691186049,1.76513769,66776.0,66775.0,0.71274882]
[1729691186258,1.55481395,66776.0,66775.0,0.71274882]
[1729691186558,1.55481395,66776.0,66775.0,0.26346882]
[1729691186758,1.55481395,66776.0,66775.0,0.13342882]
[1729691186965,1.55481395,66776.0,66775.0,0.26346882]
[1729691187259,1.55481395,66776.0,66775.0,0.71274882]
[1729691187463,1.51746409,66776.0,66775.0,0.93860803]
[1729691187662,1.51293409,66776.0,66775.0,0.93860803]
[1729691188155,1.46997409,66776.0,66775.0,0.93860803]
[1729691188460,0.14369991,66777.0,66776.0,0.074925]
[1729691188759,0.00337997,66796.0,66783.0,0.074918]
[1729691188760,0.00277161,66784.0,66783.0,0.074918]
[1729691188955,0.00277161,66784.0,66783.0,0.694118]
[1729691189349,0.00277161,66784.0,66783.0,0.91725509]
[1729691189748,0.00337997,66796.0,66785.0,0.074915]
[1729691189953,0.00337997,66796.0,66783.0,1.44233709]
[1729691189954,0.00337997,66796.0,66786.0,0.244914]
[1729691190159,0.00337997,66796.0,66789.0,0.074911]
[1729691190350,0.00337997,66796.0,66792.0,0.074907]
[1729691190561,0.00337997,66796.0,66792.0,0.244907]
[1729691190769,0.00337997,66796.0,66792.0,0.374907]
[1729691191853,0.00337997,66796.0,66792.0,0.244907]
[1729691192051,0.00337997,66796.0,66792.0,0.374907]
[1729691193157,0.00337997,66796.0,66794.0,0.074905]
[1729691194567,0.00337997,66796.0,66794.0,0.204905]
[1729691195154,0.00337997,66796.0,66789.0,0.02708536]
[1729691195361,0.24491,66790.0,66782.0,0.074919]
[1729691195662,0.00337997,66796.0,66788.0,0.17]
[1729691195869,0.00337997,66796.0,66794.0,0.074905]
[1729691196170,0.00337997,66796.0,66786.0,0.17]
[1729691196373,0.09741233,66795.0,66794.0,0.074905]
[1729691196563,0.26741233,66795.0,66794.0,0.074905]
[1729691196760,0.074907,66793.0,66792.0,0.074906]
[1729691196959,0.02250833,66795.0,66794.0,0.074905]
[1729691197559,0.02250833,66795.0,66788.0,0.074911]
[1729691197560,0.19250833,66795.0,66788.0,0.074911]
[1729691197866,0.17,66791.0,66788.0,0.13]
[1729691198065,0.244909,66791.0,66790.0,0.07491]
[1729691198260,0.074912,66789.0,66788.0,0.20491]
[1729691198460,0.17,66791.0,66790.0,0.07491]
[1729691199258,0.074905,66794.0,66789.0,0.17]
[1729691199455,0.074907,66793.0,66789.0,0.17]
[1729691199659,0.02250833,66795.0,66794.0,0.074905]
[1729691200077,0.074911,66790.0,66788.0,0.074911]
[1729691200278,0.17,66789.0,66788.0,0.074912]
[1729691200466,0.02346833,66795.0,66784.0,0.17]
[1729691200467,0.17,66792.0,66784.0,0.17]
[1729691200774,0.244908,66792.0,66791.0,0.074909]
[1729691201863,0.19250833,66795.0,66791.0,0.074909]
[1729691202160,0.02250833,66795.0,66794.0,0.074905]
[1729691202362,0.02250833,66795.0,66794.0,0.244905]
[1729691203971,0.00761657,66801.0,66794.0,0.244905]
[1729691203972,0.00763465,66808.0,66795.0,0.44912]
[1729691204273,0.00486606,66813.0,66794.0,1.23824498]
[1729691204274,0.01016294,66819.0,66805.0,0.17]
[1729691204573,0.00032474,66817.0,66816.0,0.074881]
[1729691205162,0.01016294,66819.0,66815.0,0.17]
[1729691205371,0.01016294,66819.0,66818.0,0.074878]
[1729691206362,0.01016294,66819.0,66818.0,0.212718]
[1729691207772,0.01016294,66819.0,66818.0,0.074878]
[1729691207972,0.01016294,66819.0,66818.0,0.382718]
[1729691208467,0.08503994,66819.0,66815.0,0.074881]
[1729691208668,0.08503994,66819.0,66817.0,0.17]
[1729691208867,0.01016294,66819.0,66817.0,0.17]
[1729691209070,0.01016294,66819.0,66818.0,0.244878]
[1729691209279,0.03486485,66823.0,66821.0,0.074875]
[1729691209473,0.03486485,66823.0,66822.0,0.074874]
[1729691209773,0.03486485,66823.0,66822.0,0.244874]
[1729691210073,0.03486485,66823.0,66822.0,0.831674]
[1729691210372,0.03486485,66823.0,66822.0,0.91744015]
[1729691210561,0.03486485,66823.0,66822.0,0.46848015]
[1729691210768,0.03486485,66823.0,66822.0,0.60632015]
[1729691210968,0.03486485,66823.0,66822.0,0.46848015]
[1729691211169,0.03486485,66823.0,66822.0,1.22528015]
[1729691211369,0.0044963,66831.0,66823.0,0.44892]
[1729691211564,0.01073695,66834.0,66823.0,0.44892]
[1729691211565,0.01073695,66834.0,66831.0,0.074864]
[1729691211871,0.01073695,66834.0,66831.0,0.43739331]
[1729691212072,0.01073695,66834.0,66831.0,0.29959331]
[1729691212377,0.01073695,66834.0,66833.0,0.074861]
[1729691212585,0.01073695,66834.0,66833.0,0.244861]
[1729691212772,0.01073695,66834.0,66833.0,0.91847031]
[1729691213274,0.00750592,66844.0,66834.0,0.44888]
[1729691213480,0.00750592,66844.0,66840.0,0.074854]
[1729691213673,0.00750592,66844.0,66840.0,0.244854]
[1729691213981,0.00750592,66844.0,66840.0,0.382654]
[1729691214183,0.00750592,66844.0,66840.0,0.60789549]
[1729691215170,0.00750592,66844.0,66840.0,0.49771572]
[1729691215370,0.00750592,66844.0,66840.0,0.63551572]
[1729691215776,0.00750592,66844.0,66840.0,0.80551572]
[1729691215975,0.00750592,66844.0,66840.0,1.25435572]
[1729691216970,0.04320511,66851.0,66840.0,1.25435572]
[1729691216971,0.4073,66901.0,66841.0,0.4488]
[1729691217173,0.4073,66901.0,66840.0,0.97551572]
[1729691217174,0.00857257,66902.0,66892.0,0.074795]
[1729691217375,0.00857257,66902.0,66884.0,0.074803]
[1729691217376,0.00857257,66902.0,66897.0,0.07479]
[1729691217577,0.00857257,66902.0,66897.0,0.24479]
[1729691217791,0.00857257,66902.0,66897.0,0.61844]
[1729691218270,0.00857257,66902.0,66897.0,0.78844]
[1729691218579,0.01064235,66916.0,66915.0,0.07477]
[1729691218774,0.01064235,66916.0,66901.0,0.17]
[1729691218974,0.01064235,66916.0,66912.0,0.17]
[1729691219368,0.01064235,66916.0,66914.0,0.074771]
[1729691219566,0.01064235,66916.0,66912.0,0.17]
[1729691220274,0.01064235,66916.0,66909.0,0.26]
[1729691220978,0.01064235,66916.0,66905.0,0.26]
[1729691221169,0.074771,66914.0,66900.0,0.26]
[1729691221365,0.13772,66915.0,66900.0,0.26]
[1729691221578,0.27064235,66916.0,66900.0,0.26]
[1729691221773,0.27064235,66916.0,66897.0,0.07479]
[1729691221774,0.334777,66909.0,66897.0,0.07479]
[1729691221969,0.26,66900.0,66894.0,0.00096]
[1729691222282,0.03,66908.0,66888.0,0.074799]
[1729691222283,0.26,66895.0,66888.0,0.074799]
[1729691222482,0.26,66895.0,66886.0,0.074802]
[1729691222868,0.26,66891.0,66881.0,0.00088]
[1729691223178,0.26,66891.0,66876.0,0.26]
[1729691223179,0.26,66886.0,66876.0,0.00092]
[1729691223381,0.0323,66885.0,66880.0,0.26]
[1729691224075,0.0323,66885.0,66884.0,0.074804]
[1729691224277,0.0323,66885.0,66880.0,0.26]
[1729691225778,0.0323,66885.0,66876.0,0.26]
[1729691225979,0.0323,66885.0,66877.0,0.074812]
[1729691226380,0.0323,66885.0,66876.0,0.26]
[1729691227084,0.074792,66896.0,66881.0,0.26]
[1729691227377,0.074797,66891.0,66881.0,0.26]
[1729691227580,0.26,66890.0,66876.0,0.26]
[1729691227776,0.074802,66887.0,66876.0,0.26]
[1729691227967,0.074805,66884.0,66873.0,0.02670751]
[1729691228176,0.26,66879.0,66871.0,0.00013414]
[1729691228472,0.26,66889.0,66875.0,0.26]
[1729691228672,0.074804,66885.0,66876.0,0.074813]
[1729691229083,0.2608,66889.0,66875.0,0.26096]
[1729691229274,0.074805,66884.0,66876.0,0.074813]
[1729691229476,0.26076,66889.0,66875.0,0.26084]
[1729691229775,0.26,66880.0,66871.0,0.00013414]
[1729691229975,0.14496,66889.0,66871.0,0.00013414]
[1729691229976,0.334814,66876.0,66871.0,0.00013414]
[1729691230180,0.0629,66875.0,66871.0,0.07495214]
[1729691230382,0.0629,66875.0,66871.0,0.00013414]
[1729691230973,0.0305,66874.0,66871.0,0.00013414]
[1729691231283,0.0305,66874.0,66863.0,0.00084]
[1729691231284,0.0305,66874.0,66873.0,0.26]
[1729691231476,0.0305,66874.0,66873.0,0.334817]
[1729691232185,0.03063414,66874.0,66873.0,0.334817]
[1729691232481,0.03063414,66874.0,66869.0,0.074821]
[1729691232689,0.03063414,66874.0,66864.0,0.26]
[1729691232690,0.00013414,66874.0,66873.0,0.334817]
[1729691233183,0.00013414,66874.0,66873.0,0.783417]
[1729691233575,0.00013414,66874.0,66873.0,0.334817]
[1729691235289,0.00013414,66874.0,66873.0,0.074817]
[1729691235474,0.074817,66873.0,66869.0,0.09720647]
[1729691235677,0.00013414,66874.0,66869.0,0.02150547]
[1729691235678,0.074819,66871.0,66869.0,0.02150547]
[1729691235875,0.00013414,66874.0,66868.0,0.26]
[1729691236084,0.00013414,66874.0,66873.0,0.334817]
[1729691237592,0.00013414,66874.0,66873.0,0.56027178]
[1729691239397,0.00013414,66874.0,66873.0,0.334817]
[1729691239693,0.00013414,66874.0,66873.0,0.26]
[1729691239894,0.00013414,66874.0,66873.0,0.074817]
[1729691240088,0.07495014,66874.0,66873.0,0.26]
[1729691240284,0.00013414,66874.0,66873.0,0.334817]
[1729691241993,0.07482,66871.0,66869.0,0.07482]
[1729691242193,0.00013414,66874.0,66869.0,0.07482]
[1729691242194,0.0303,66870.0,66869.0,0.074821]
[1729691242491,0.0303,66870.0,66869.0,0.334821]
[1729691242695,0.10512,66870.0,66869.0,0.26]
[1729691243088,0.0303,66870.0,66869.0,0.334821]
[1729691243395,0.0303,66870.0,66865.0,0.30367827]
[1729691243603,0.074824,66867.0,66865.0,0.26]
[1729691243894,0.074824,66867.0,66866.0,0.22517943]
[1729691244088,0.074824,66867.0,66866.0,0.12537943]
[1729691244496,0.523464,66867.0,66866.0,0.12537943]
[1729691245099,0.523464,66867.0,66857.0,0.26]
[1729691245299,0.074833,66858.0,66857.0,0.26]
[1729691245491,0.074833,66858.0,66857.0,0.30367827]
[1729691245796,0.074824,66867.0,66857.0,0.30367827]
[1729691245797,0.07483,66861.0,66860.0,0.074831]
[1729691245989,0.00013414,66861.0,66860.0,0.334831]
[1729691246186,0.00013414,66861.0,66860.0,0.55970155]
[1729691246390,0.00013414,66861.0,66860.0,0.87357794]
[1729691247397,0.00013414,66861.0,66860.0,0.61357794]
[1729691247696,0.00013414,66861.0,66860.0,0.22487055]
[1729691247697,0.07496414,66861.0,66860.0,0.22487055]
[1729691247888,0.07483,66861.0,66860.0,0.22487055]
[1729691248088,0.33482,66871.0,66856.0,0.22534482]
[1729691248089,0.074835,66857.0,66856.0,0.22534482]
[1729691248295,0.26076,66866.0,66854.0,0.0226786]
[1729691248491,0.00013414,66857.0,66856.0,0.29862997]
[1729691248897,0.00013414,66857.0,66856.0,0.26]
[1729691249093,0.00013414,66857.0,66856.0,0.42421794]
[1729691249405,0.00013414,66857.0,66856.0,0.3507811]
[1729691249714,0.00013414,66857.0,66854.0,0.07350092]
[1729691250202,0.07497014,66856.0,66854.0,0.07350092]
[1729691250399,0.07497014,66856.0,66853.0,0.14833892]
[1729691250704,0.00013414,66856.0,66853.0,0.14833992]
[1729691250904,0.00013414,66856.0,66854.0,0.074838]
[1729691251294,0.2924,66867.0,66853.0,0.07350092]
[1729691251295,0.26,66863.0,66853.0,0.07350092]
[1729691251506,0.26,66855.0,66854.0,0.05881757]
[1729691251704,0.07484,66852.0,66851.0,0.05881757]
[1729691252008,0.074833,66858.0,66849.0,0.05881757]
[1729691252205,0.074842,66850.0,66848.0,0.05881757]
[1729691252505,0.00076,66859.0,66849.0,0.26]
[1729691252803,0.074837,66855.0,66854.0,0.26]
[1729691253005,0.104929,66862.0,66842.0,0.02119284]
[1729691253006,0.246529,66862.0,66850.0,0.05881757]
[1729691253204,0.074841,66851.0,66850.0,0.39365857]
[1729691253502,0.074841,66851.0,66850.0,0.334842]
[1729691253901,0.074841,66851.0,66850.0,0.26]
[1729691254103,0.07483,66861.0,66849.0,0.05881757]
[1729691254104,0.074842,66850.0,66849.0,0.05881757]
[1729691254497,0.074842,66850.0,66849.0,0.074844]
[1729691254710,0.07484,66852.0,66848.0,0.05881757]
[1729691255010,0.07484,66852.0,66850.0,0.334842]
[1729691255399,0.074841,66851.0,66850.0,0.334842]
[1729691257495,0.07497514,66851.0,66850.0,0.334842]
[1729691257697,0.074841,66851.0,66850.0,0.334842]
[1729691258099,0.1416,66859.0,66852.0,0.074839]
[1729691258502,0.70872,66858.0,66850.0,0.00092]
[1729691258702,0.074835,66857.0,66845.0,0.31881757]
[1729691259013,0.074844,66849.0,66848.0,0.074844]
[1729691259397,0.074844,66849.0,66845.0,0.31965757]
[1729691259398,0.074847,66846.0,66845.0,0.31965757]
[1729691259603,0.074847,66846.0,66842.0,0.02119284]
[1729691259604,0.074849,66844.0,66843.0,0.05871908]
[1729691259802,0.074851,66842.0,66841.0,0.00084]
[1729691259999,0.26,66844.0,66834.0,0.07486]
[1729691260000,0.074859,66835.0,66834.0,0.07486]
[1729691260199,0.00013414,66835.0,66831.0,0.05871908]
[1729691260404,0.26,66837.0,66832.0,0.074863]
[1729691260405,0.074858,66836.0,66832.0,0.074863]
[1729691260609,0.074858,66836.0,66835.0,0.074859]
[1729691262807,0.07499214,66836.0,66835.0,0.074859]
[1729691263015,0.074858,66836.0,66835.0,0.074859]
[1729691263714,0.244854,66840.0,66839.0,0.074855]
[1729691263909,0.244854,66840.0,66835.0,0.02173486]
[1729691264208,0.17374,66843.0,66836.0,0.074858]
[1729691264209,0.244858,66837.0,66836.0,0.074858]
[1729691265603,0.244858,66837.0,66836.0,0.09607056]
[1729691266709,0.24497962,66837.0,66836.0,0.09607056]
[1729691266916,0.244858,66837.0,66836.0,0.09607056]
[1729691267108,0.24498364,66837.0,66836.0,0.09607056]
[1729691267304,0.244858,66837.0,66836.0,0.09607056]
[1729691270426,0.244858,66837.0,66831.0,0.05478964]
[1729691270917,0.074858,66837.0,66836.0,0.074858]
[1729691271109,0.244858,66837.0,66836.0,0.074858]
[1729691271513,0.0317,66845.0,66836.0,0.074858]
[1729691271709,0.00076,66875.0,66831.0,0.09553207]
[1729691271710,0.13436,66852.0,66831.0,0.09553207]
[1729691271911,0.13436,66852.0,66825.0,0.08812421]
[1729691271912,0.074841,66852.0,66851.0,0.074841]
[1729691272820,0.244841,66852.0,66851.0,0.074841]
[1729691274320,0.244841,66852.0,66847.0,0.074845]
[1729691274321,0.074846,66848.0,66847.0,0.074845]
[1729691274519,0.693601,66852.0,66843.0,0.074848]
[1729691274520,0.074852,66844.0,66843.0,0.074848]
[1729691275307,0.074853,66841.0,66840.0,0.02142061]
[1729691275616,0.244853,66841.0,66840.0,0.074854]
[1729691276913,0.17,66844.0,66840.0,0.074854]
[1729691277109,0.07485,66844.0,66843.0,0.07485]
[1729691277518,0.24485,66844.0,66843.0,0.07485]
[1729691278108,0.24485,66844.0,66839.0,0.07350092]
[1729691278109,0.0326,66846.0,66839.0,0.07350092]
[1729691278316,0.074854,66842.0,66841.0,0.074851]
[1729691278529,0.244854,66842.0,66841.0,0.074851]
[1729691279017,0.074856,66839.0,66838.0,0.074856]
[1729691279212,0.244856,66839.0,66838.0,0.074856]
[1729691279412,0.244855,66839.0,66838.0,0.07350092]
[1729691279621,0.074856,66838.0,66837.0,0.07350092]
[1729691279919,0.17,66839.0,66836.0,0.07350092]
[1729691279920,0.074857,66837.0,66836.0,0.07350092]
[1729691280120,0.074858,66836.0,66835.0,0.02174716]
[1729691280419,0.074864,66831.0,66830.0,0.07350092]
[1729691280618,0.074866,66829.0,66828.0,0.07350092]
[1729691280822,0.17,66829.0,66827.0,0.09503499]
[1729691281018,0.074867,66828.0,66827.0,0.074867]
[1729691281320,0.074867,66830.0,66829.0,0.074864]
[1729691282019,0.00011827,66830.0,66829.0,0.24371219]
[1729691282219,0.17,66850.0,66829.0,0.35070395]
[1729691282516,0.074849,66845.0,66844.0,0.074849]
[1729691283520,0.074849,66845.0,66836.0,0.11984144]
[1729691283521,0.074849,66844.0,66843.0,0.07369642]
[1729691283716,0.074857,66837.0,66836.0,0.14855342]
[1729691283920,0.074857,66837.0,66836.0,0.074857]
[1729691284319,0.074857,66837.0,66836.0,0.14855342]
[1729691285016,0.074857,66837.0,66836.0,0.17013738]
[1729691285423,0.074857,66837.0,66836.0,0.26256527]
[1729691285618,0.074857,66837.0,66836.0,0.18886885]
[1729691285922,0.074857,66837.0,66836.0,0.18773741]
[1729691286122,0.074857,66837.0,66835.0,0.07372556]
[1729691286123,0.074858,66836.0,66835.0,0.07372556]
[1729691286426,0.07486,66834.0,66833.0,0.07372556]
[1729691286623,0.24486,66834.0,66833.0,0.07372556]
[1729691286924,0.69374,66834.0,66828.0,0.07372556]
[1729691287115,0.074868,66827.0,66825.0,0.07372556]
[1729691287320,0.17,66826.0,66824.0,0.07372556]
[1729691287517,0.17,66825.0,66823.0,0.07372556]
[1729691288029,0.074879,66817.0,66816.0,0.07372556]
[1729691288227,0.074879,66817.0,66812.0,0.09555763]
[1729691288228,0.17,66817.0,66812.0,0.09555763]
[1729691288416,0.074881,66816.0,66815.0,0.074882]
[1729691288626,0.0635,66827.0,66811.0,0.07372556]
[1729691288821,0.0635,66827.0,66817.0,0.07372556]
[1729691288822,0.074874,66823.0,66817.0,0.07372556]
[1729691289020,0.074874,66823.0,66818.0,0.07372556]
[1729691289220,0.074874,66823.0,66822.0,0.074874]
[1729691289725,0.074874,66823.0,66818.0,0.07372556]
[1729691289726,0.074876,66820.0,66819.0,0.07372556]
[1729691289928,0.074877,66819.0,66818.0,0.07372556]
[1729691290116,0.074877,66819.0,66816.0,0.07372556]
[1729691290319,0.074879,66817.0,66816.0,0.02144844]
[1729691290517,0.244879,66817.0,66808.0,0.10482556]
[1729691290722,0.244888,66809.0,66808.0,0.105989]
[1729691291725,0.244888,66809.0,66808.0,0.12794668]
[1729691291927,0.244888,66809.0,66808.0,0.09684668]
[1729691292128,0.17,66809.0,66808.0,0.09684668]
[1729691293424,0.244888,66809.0,66808.0,0.09684668]
[1729691293622,0.17,66809.0,66808.0,0.09684668]
[1729691293824,0.17,66812.0,66811.0,0.074886]
[1729691294830,0.00076,66842.0,66811.0,0.44904]
[1729691295040,0.17,66842.0,66836.0,0.17]
[1729691295222,0.17,66845.0,66836.0,0.17]
[1729691295421,0.244848,66845.0,66836.0,0.17]
[1729691295736,0.17,66849.0,66840.0,0.17]
[1729691295929,0.02645521,66856.0,66846.0,0.074846]
[1729691295930,0.244841,66852.0,66846.0,0.074846]
[1729691296120,0.244846,66848.0,66840.0,0.07372556]
[1729691296444,0.074848,66845.0,66842.0,0.074851]
[1729691296739,0.26,66848.0,66835.0,0.26]
[1729691296740,0.26,66848.0,66839.0,0.074854]
[1729691296929,0.26,66852.0,66839.0,0.26]
[1729691297232,0.074845,66848.0,66839.0,0.26]
[1729691297423,0.26,66852.0,66843.0,0.074849]
[1729691297624,0.26,66852.0,66844.0,0.074849]
[1729691297825,0.26,66852.0,66840.0,0.0319]
[1729691298028,0.074847,66846.0,66840.0,0.0319]
[1729691298327,0.074847,66846.0,66843.0,0.07485]
[1729691298527,0.074847,66846.0,66840.0,0.0319]
[1729691298528,0.26,66852.0,66840.0,0.0319]
[1729691298927,0.074848,66845.0,66840.0,0.0319]
[1729691299244,0.074848,66845.0,66840.0,0.106753]
[1729691299627,0.074848,66845.0,66840.0,0.0319]
[1729691299947,0.074833,66859.0,66844.0,0.26]
[1729691300129,0.26,66869.0,66842.0,0.07372556]
[1729691300130,0.26,66869.0,66858.0,0.26]
[1729691300439,0.26,66873.0,66858.0,0.26]
[1729691300628,0.074808,66881.0,66867.0,0.074823]
[1729691300629,0.074821,66870.0,66867.0,0.074823]
[1729691300823,0.074823,66868.0,66867.0,0.074823]
[1729691301136,0.26,66878.0,66863.0,0.26084]
[1729691301338,0.074824,66867.0,66863.0,0.334827]
[1729691301732,0.074824,66867.0,66865.0,0.074825]
[1729691302335,0.26,66878.0,66863.0,0.26084]
[1729691302540,0.074813,66877.0,66874.0,0.074815]